bitfinex-derivatives/quotes_SOLF0:USTF0_20241217
["timestamp","ask_amount","ask_price","bid_price","bid_amount"]
[1734463828159,3.85766205,227.91,227.86,5.84718893]
[1734463828358,3.85766205,227.9,227.86,5.84718893]
[1734463828565,3.85530584,227.89,227.86,5.84718893]
[1734463828764,2.1936,227.9,227.86,5.84718893]
[1734463829062,3.85507512,227.89,227.86,5.84718893]
[1734463829253,2.1936,227.9,227.86,5.84718893]
[1734463829455,6.04872132,227.89,227.83,7.6024]
[1734463829668,2.1937,227.89,227.84,5.84718893]
[1734463830160,5.84718893,227.9,227.83,7.6024]
[1734463830458,5.84718893,227.88,227.81,2.48]
[1734463830664,3.85443737,227.87,227.79,236.67125183]
[1734463830867,9.7016263,227.86,227.79,5.84718893]
[1734463831165,3.85443737,227.85,227.79,5.84718893]
[1734463831664,5.84718893,227.86,227.79,5.84718893]
[1734463831665,3.85300097,227.84,227.79,5.84718893]
[1734463831858,3.85300097,227.83,227.79,5.84718893]
[1734463832058,5.84718893,227.86,227.77,2.48]
[1734463832363,3.8516012,227.85,227.77,2.48]
[1734463832563,3.8516012,227.84,227.77,2.48]
[1734463832866,3.8516012,227.83,227.74,245.83528716]
[1734463833165,3.8516012,227.83,227.75,2.1949]
[1734463833166,3.8516012,227.82,227.75,2.1949]
[1734463833663,3.8516012,227.82,227.74,9.16403533]
[1734463833866,3.8516012,227.82,227.76,2.1949]
[1734463834166,3.8516012,227.82,227.74,11.64403533]
[1734463834364,2.48,227.86,227.74,11.64403533]
[1734463834562,2.48,227.86,227.75,2.1949]
[1734463834563,3.85088673,227.85,227.75,2.1949]
[1734463834754,2.1946,227.79,227.74,2.48]
[1734463835155,3.85000531,227.78,227.74,2.48]
[1734463835359,2.1946,227.79,227.74,2.48]
[1734463835559,3.8475931,227.78,227.74,2.48]
[1734463835861,2.1951,227.75,227.7,590.42508722]
[1734463836160,2.48,227.81,227.7,236.67125183]
[1734463836463,2.1948,227.77,227.7,236.67125183]
[1734463836663,2.48,227.81,227.69,7.86468734]
[1734463836862,3.84568664,227.8,227.69,7.86468734]
[1734463837062,3.84568664,227.79,227.69,7.86468734]
[1734463837255,3.84568664,227.78,227.69,7.86468734]
[1734463837455,3.84568664,227.77,227.7,2.1955]
[1734463837762,2.1947,227.78,227.7,2.1955]
[1734463838058,3.84421452,227.77,227.7,2.1955]
[1734463838264,2.1947,227.78,227.7,2.1955]
[1734463838467,3.84246593,227.77,227.7,2.1955]
[1734463838666,2.1947,227.78,227.7,2.1955]
[1734463838861,3.84540888,227.77,227.69,2.48]
[1734463839064,9.16403533,227.79,227.67,2.74279]
[1734463839363,3.84527367,227.78,227.67,0.26279]
[1734463839566,2.1952,227.73,227.67,0.26279]
[1734463840062,2.1954,227.71,227.67,0.26279]
[1734463841163,2.1955,227.7,227.67,0.26279]
[1734463841360,11.64403533,227.76,227.67,0.26279]
[1734463841665,9.16403533,227.73,227.67,0.26279]
[1734463841860,3.84291183,227.72,227.67,0.26279]
[1734463842062,3.84291183,227.71,227.67,0.26279]
[1734463842268,13.00694716,227.7,227.67,0.26279]
[1734463842569,2.1957,227.68,227.67,0.26279]
[1734463842767,6.03861183,227.68,227.67,0.26279]
[1734463845266,3.84291183,227.68,227.67,0.26279]
[1734463846067,11.64403533,227.76,227.67,0.26279]
[1734463846371,9.16403533,227.73,227.67,0.26279]
[1734463846668,2.1954,227.71,227.67,0.26279]
[1734463846859,3.84108454,227.7,227.67,0.26279]
[1734463847059,5.23585917,227.72,227.67,0.26279]
[1734463847060,3.84108454,227.71,227.67,0.26279]
[1734463847261,3.84108454,227.7,227.67,0.26279]
[1734463847466,3.84108454,227.69,227.67,0.26279]
[1734463847762,3.84108454,227.68,227.67,0.26279]
[1734463847962,3.84108454,227.71,227.67,0.26279]
[1734463848168,3.84108454,227.7,227.67,0.26279]
[1734463848373,3.84108454,227.69,227.67,0.26279]
[1734463848570,3.84108454,227.68,227.67,0.26279]
[1734463849971,3.84108454,227.69,227.67,0.26279]
[1734463850170,3.84108454,227.68,227.67,0.26279]
[1734463850367,3.84108454,227.68,227.64,2.48]
[1734463850572,3.84108454,227.67,227.64,2.48]
[1734463850775,2.1956,227.69,227.64,2.48]
[1734463851075,3.84576045,227.68,227.64,2.48]
[1734463851373,3.84576045,227.67,227.64,2.48]
[1734463851569,2.1956,227.69,227.64,2.48]
[1734463851774,3.84637443,227.68,227.64,2.48]
[1734463851974,3.84637443,227.67,227.64,2.48]
[1734463852166,3.84637443,227.66,227.58,251.17928165]
[1734463852365,2.1956,227.69,227.59,2.52]
[1734463852571,3.84478431,227.68,227.59,2.52]
[1734463852766,3.84478431,227.67,227.59,4.7165]
[1734463852965,3.84478431,227.66,227.59,4.7165]
[1734463853169,3.84470811,227.65,227.59,4.7165]
[1734463853367,9.16403533,227.7,227.59,4.7165]
[1734463853573,3.84472507,227.69,227.59,4.7165]
[1734463853772,3.84458277,227.68,227.59,4.7165]
[1734463853975,2.1959,227.66,227.6,5.8740288]
[1734463854274,3.84458277,227.65,227.6,5.8740288]
[1734463854778,2.196,227.65,227.6,5.8740288]
[1734463854975,5.8740288,227.67,227.6,8.0704288]
[1734463855274,3.8450901,227.66,227.6,8.0704288]
[1734463855475,9.7191189,227.65,227.58,4.7166]
[1734463855665,3.8450901,227.64,227.58,2.52]
[1734463856168,3.8450901,227.64,227.57,9.1027988]
[1734463856575,2.1963,227.62,227.57,9.1027988]
[1734463858173,5.8740288,227.63,227.57,0.36217]
[1734463858471,2.1965,227.6,227.57,0.36217]
[1734463858872,2.1966,227.59,227.57,0.36217]
[1734463860376,164.7238,227.64,227.57,0.36217]
[1734463860377,164.7238,227.64,227.57,6.2361988]
[1734463860576,164.7238,227.64,227.61,5.8740288]
[1734463861378,2.196,227.66,227.6,5.8740288]
[1734463862179,2.196,227.66,227.6,8.0704288]
[1734463862376,8.0700288,227.66,227.6,8.0704288]
[1734463862572,2.196,227.66,227.6,8.0704288]
[1734463862874,8.37937767,227.73,227.62,5.8740288]
[1734463863082,9.71334201,227.72,227.64,5.8740288]
[1734463863276,3.83931321,227.71,227.66,2.1959]
[1734463863977,3.83931321,227.71,227.65,2.1959]
[1734463864775,5.8740288,227.72,227.66,2.1958]
[1734463865278,5.8740288,227.72,227.65,2.196]
[1734463865279,3.84686781,227.71,227.65,2.196]
[1734463865478,8.0693288,227.72,227.65,2.196]
[1734463865682,3.84697191,227.71,227.65,2.196]
[1734463865882,8.0693288,227.72,227.65,2.196]
[1734463866082,3.84706201,227.71,227.65,2.196]
[1734463866278,8.0693288,227.72,227.65,2.196]
[1734463866580,3.84976869,227.71,227.65,2.196]
[1734463866877,8.0693288,227.72,227.65,2.196]
[1734463867077,3.85012587,227.71,227.66,8.0699288]
[1734463867381,5.8740288,227.74,227.66,5.8740288]
[1734463867579,3.85299892,227.73,227.66,5.8740288]
[1734463867775,5.8740288,227.74,227.64,2.52]
[1734463867776,3.85299892,227.72,227.68,5.8740288]
[1734463868078,5.8740288,227.78,227.7,5.8740288]
[1734463868382,3.85679499,227.77,227.72,5.8740288]
[1734463868582,3.85679499,227.76,227.74,5.8740288]
[1734463868782,5.8740288,227.81,227.74,5.8740288]
[1734463869083,3.85674028,227.8,227.76,5.8740288]
[1734463869281,5.8740288,227.83,227.76,5.8740288]
[1734463869487,3.86180637,227.82,227.76,5.8740288]
[1734463869681,3.86180637,227.81,227.76,5.8740288]
[1734463869890,3.86180637,227.8,227.78,5.8740288]
[1734463870089,5.8740288,227.87,227.78,5.8740288]
[1734463870293,3.86474637,227.86,227.8,2.1944]
[1734463870594,5.9179,227.91,227.75,2.52]
[1734463870595,5.8740288,227.83,227.75,2.52]
[1734463870791,3.86474637,227.82,227.75,2.52]
[1734463871088,9.73877517,227.81,227.75,2.52]
[1734463871293,3.86474637,227.8,227.75,2.52]
[1734463872286,3.86474637,227.79,227.75,2.52]
[1734463872484,3.86474637,227.78,227.75,2.52]
[1734463872686,3.86474637,227.77,227.75,2.52]
[1734463872885,3.86474637,227.76,227.75,2.52]
[1734463873291,9.16729133,227.87,227.75,2.52]
[1734463873492,2.52,227.88,227.76,9.16729133]
[1734463874296,9.16729133,227.9,227.76,9.16729133]
[1734463874494,2.1939,227.87,227.79,2.1946]
[1734463874997,9.16729133,227.9,227.8,2.52]
[1734463874998,2.1938,227.89,227.8,2.52]
[1734463876298,2.1938,227.89,227.82,2.1943]
[1734463877293,3.0324,227.91,227.8,2.52]
[1734463877593,9.16729133,227.9,227.8,2.52]
[1734463877995,2.1939,227.87,227.8,2.52]
[1734463878195,9.16729133,227.9,227.8,2.52]
[1734463878790,9.16729133,227.87,227.76,2.52]
[1734463879301,2.1944,227.81,227.73,2.1951]
[1734463879600,9.16729133,227.84,227.74,2.52]
[1734463879790,2.1944,227.81,227.74,2.52]
[1734463879996,2.1944,227.81,227.74,4.7151]
[1734463880190,2.1944,227.81,227.74,2.52]
[1734463880701,2.1944,227.81,227.72,5.22564954]
[1734463880901,9.16729133,227.84,227.72,2.46]
[1734463880902,2.1946,227.79,227.72,2.46]
[1734463881902,9.16729133,227.84,227.72,2.46]
[1734463881903,2.1948,227.78,227.72,2.46]
[1734463882404,2.1945,227.8,227.73,2.1952]
[1734463883403,2.1945,227.8,227.74,2.1951]
[1734463884505,2.1945,227.8,227.73,2.1952]
[1734463884704,2.1945,227.8,227.72,2.46]
[1734463885401,2.1945,227.8,227.73,2.46]
[1734463885804,9.16729133,227.84,227.73,2.46]
[1734463885805,2.1947,227.79,227.73,2.46]
[1734463886308,9.16729133,227.84,227.73,2.46]
[1734463887107,12.11419133,227.87,227.73,2.46]
[1734463887511,2.1944,227.82,227.74,2.195]
[1734463888710,2.1944,227.82,227.73,2.46]
[1734463889112,5.4069,227.87,227.75,9.16729133]
[1734463889413,5.4069,227.87,227.78,2.1947]
[1734463890013,2.1939,227.87,227.8,2.1945]
[1734463890215,2.1939,227.87,227.78,2.46]
[1734463890713,2.194,227.86,227.78,2.46]
[1734463891011,11.62729133,227.9,227.78,2.46]
[1734463891812,2.194,227.86,227.78,2.46]
[1734463892213,2.194,227.86,227.79,2.1946]
[1734463893412,2.194,227.86,227.78,2.46]
[1734463893609,2.194,227.86,227.8,2.1945]
[1734463893819,2.194,227.86,227.78,2.46]
[1734463894010,2.1939,227.87,227.78,2.46]
[1734463894206,11.62729133,227.9,227.79,2.1946]
[1734463894411,11.62729133,227.9,227.78,2.46]
[1734463894809,11.62729133,227.9,227.79,2.1946]
[1734463895015,5.15515697,227.89,227.79,2.1946]
[1734463895519,2.194,227.86,227.79,2.1946]
[1734463895720,5.15515697,227.89,227.79,2.1946]
[1734463895920,5.15515697,227.89,227.78,2.1947]
[1734463896912,11.62729133,227.9,227.77,2.46]
[1734463896913,9.16729133,227.9,227.77,2.46]
[1734463897118,3.0324,227.91,227.78,9.16729133]
[1734463897522,3.0324,227.91,227.79,342.66147665]
[1734463897818,3.0324,227.91,227.81,9.16729133]
[1734463898020,2.1936,227.9,227.85,5.86121005]
[1734463898218,5.86121005,227.94,227.87,5.86121005]
[1734463898417,2.1932,227.94,227.89,5.86121005]
[1734463898821,8.1914,228.0,227.91,5.86121005]
[1734463899022,2.193,227.97,227.91,5.86121005]
[1734463899223,5.86121005,227.99,227.91,5.86121005]
[1734463900120,8.1914,228.0,227.88,11.34673848]
[1734463900323,5.28162216,227.98,227.88,11.34673848]
[1734463900622,5.28162216,227.98,227.88,2.46]
[1734463900821,5.28162216,227.98,227.85,9.15303848]
[1734463901023,2.8579,227.97,227.85,9.15303848]
[1734463901323,2.1934,227.92,227.85,11.34703848]
[1734463901819,2.8579,227.97,227.84,2.46]
[1734463901820,2.1935,227.91,227.84,2.46]
[1734463902018,9.15303848,227.96,227.84,2.46]
[1734463902215,9.15303848,227.96,227.8,5.8645]
[1734463902216,9.15303848,227.93,227.81,2.46]
[1734463902423,2.1938,227.88,227.81,4.6544]
[1734463902619,11.61303848,227.93,227.81,2.46]
[1734463903623,2.1938,227.88,227.81,2.46]
[1734463903927,11.61303848,227.93,227.81,2.46]
[1734463904819,2.1938,227.88,227.81,4.6544]
[1734463906329,11.61303848,227.93,227.81,2.46]
[1734463906821,2.46,227.92,227.81,2.46]
[1734463907022,2.1938,227.88,227.81,4.6544]
[1734463907230,2.46,227.95,227.82,9.15303848]
[1734463907925,2.1934,227.93,227.85,2.194]
[1734463908126,2.1934,227.93,227.82,9.15303848]
[1734463908719,2.1934,227.93,227.86,2.1939]
[1734463911125,2.1934,227.92,227.86,2.1939]
[1734463911434,2.1934,227.92,227.85,2.194]
[1734463912528,2.1935,227.91,227.85,2.194]
[1734463912728,9.15303848,227.93,227.82,4.6542]
[1734463912924,2.1936,227.9,227.82,2.46]
[1734463913129,2.46,227.95,227.87,2.1939]
[1734463913631,2.1933,227.93,227.82,11.61303848]
[1734463913833,9.15303848,227.96,227.86,2.1939]
[1734463914028,11.61303848,227.96,227.86,2.1939]
[1734463915433,9.15303848,227.96,227.82,267.72449103]
[1734463915735,2.8579,227.97,227.88,2.1937]
[1734463916136,2.1931,227.95,227.88,2.1938]
[1734463916737,2.1932,227.94,227.88,2.1938]
[1734463918843,2.1931,227.95,227.89,2.1936]
[1734463919045,11.61303848,227.99,227.87,2.46]
[1734463919349,2.46,227.99,227.87,2.46]
[1734463919638,2.1929,227.97,227.9,2.1935]
[1734463920740,2.1931,227.95,227.87,2.46]
[1734463920940,9.15303848,227.93,227.85,512.46093875]
[1734463921140,9.15303848,227.93,227.82,54.62258882]
[1734463921347,9.15303848,227.93,227.79,205.67787829]
[1734463921537,9.15303848,227.93,227.79,185.20259866]
[1734463921743,9.15303848,227.93,227.79,2.46]
[1734463922445,2.1938,227.88,227.81,2.1944]
[1734463922649,9.15303848,227.93,227.79,2.46]
[1734463922842,2.46,227.94,227.81,9.15303848]
[1734463923039,2.1934,227.92,227.85,2.194]
[1734463923238,2.46,227.94,227.84,2.46]
[1734463923543,9.15303848,227.96,227.84,2.46]
[1734463923739,11.61303848,227.96,227.84,2.46]
[1734463923942,2.1932,227.94,227.87,2.1939]
[1734463924641,2.1933,227.93,227.87,2.1939]
[1734463924841,2.1933,227.93,227.85,2.194]
[1734463925345,9.15303848,227.92,227.81,185.20259866]
[1734463925542,12.12783848,227.92,227.8,238.86575183]
[1734463925747,12.12783848,227.92,227.8,2.1945]
[1734463926045,2.1938,227.88,227.8,2.1945]
[1734463926445,2.46,227.91,227.8,2.1945]
[1734463926641,2.46,227.91,227.78,11.61303848]
[1734463926642,2.194,227.86,227.78,11.61303848]
[1734463926847,9.15303848,227.89,227.75,607.99556169]
[1734463927047,9.15303848,227.86,227.75,413.28362455]
[1734463927243,9.15303848,227.86,227.75,238.86625183]
[1734463927747,9.15303848,227.83,227.75,236.67125183]
[1734463927948,2.46,227.86,227.71,585.62966703]
[1734463927949,9.15303848,227.8,227.71,249.81940859]
[1734463928147,9.15303848,227.8,227.69,352.76421841]
[1734463928349,2.195,227.76,227.69,236.67125183]
[1734463929144,2.1948,227.77,227.69,2.1956]
[1734463929345,2.46,227.81,227.69,9.15303848]
[1734463929644,2.46,227.81,227.72,2.1953]
[1734463929645,2.1946,227.79,227.72,2.1953]
[1734463929843,2.46,227.81,227.69,9.15303848]
[1734463930247,2.46,227.81,227.69,2.1956]
[1734463931049,2.46,227.81,227.68,7.81675776]
[1734463931353,9.15303848,227.8,227.68,184.42913048]
[1734463931650,9.15303848,227.8,227.68,7.81675776]
[1734463931850,9.15303848,227.8,227.68,2.46]
[1734463932351,2.1949,227.76,227.69,2.1956]
[1734463932650,9.15303848,227.8,227.66,11.61303848]
[1734463932947,2.1949,227.76,227.67,2.1958]
[1734463933154,9.15303848,227.8,227.67,2.1958]
[1734463933348,9.15303848,227.8,227.66,11.61303848]
[1734463933644,9.15303848,227.8,227.66,13.80893848]
[1734463934051,9.15303848,227.8,227.66,11.34893848]
[1734463934253,9.15303848,227.8,227.66,13.80893848]
[1734463935445,2.46,227.79,227.7,2.1955]
[1734463936047,2.9761,227.88,227.74,2.1951]
[1734463936245,9.15303848,227.86,227.73,2.46]
[1734463936443,2.1942,227.84,227.73,2.46]
[1734463936845,2.1942,227.84,227.73,5.4385]
[1734463937248,2.1942,227.84,227.73,773.81076569]
[1734463937448,2.1942,227.84,227.77,2.1948]
[1734463937650,2.1941,227.85,227.77,2.1948]
[1734463937849,5.30350017,227.86,227.77,2.1948]
[1734463938553,2.1942,227.84,227.76,2.1949]
[1734463940852,2.9564,227.87,227.75,9.15303848]
[1734463942449,2.9564,227.87,227.78,2.1947]
[1734463942450,2.1941,227.85,227.78,2.1947]
[1734463943047,9.15303848,227.89,227.78,2.1947]
[1734463943257,2.194,227.86,227.78,2.1947]
[1734463943855,2.194,227.86,227.79,2.1946]
[1734463944255,2.46,227.89,227.75,9.15303848]
[1734463944456,2.1939,227.87,227.8,2.1944]
[1734463945553,11.61303848,227.92,227.79,2.46]
[1734463945754,2.1937,227.89,227.82,2.1943]
[1734463947059,3.0861,227.93,227.79,2.46]
[1734463947360,3.0861,227.93,227.79,588.08966703]
[1734463947559,2.1935,227.91,227.84,2.1941]
[1734463947762,12.14373848,227.98,227.84,2.46]
[1734463947959,2.9907,227.98,227.84,11.61303848]
[1734463948260,2.9907,227.98,227.85,5.7922]
[1734463948459,2.1931,227.95,227.87,2.1938]
[1734463948956,2.1931,227.95,227.88,2.1937]
[1734463950249,2.1932,227.94,227.88,2.1937]
[1734463951359,12.14373848,227.98,227.88,2.1937]
[1734463951560,2.1931,227.95,227.86,9.15303848]
[1734463951956,2.1931,227.95,227.88,2.1937]
[1734463952158,9.15303848,227.97,227.85,5.7922]
[1734463952354,2.1933,227.93,227.85,5.7922]
[1734463952556,9.15303848,227.97,227.86,2.1939]
[1734463952860,2.1933,227.93,227.86,2.1939]
[1734463953159,2.1933,227.93,227.87,2.1938]
[1734463955659,2.1933,227.93,227.88,2.1938]
[1734463961964,2.1933,227.93,227.88,8.05318136]
[1734463962973,2.1932,227.94,227.89,2.1937]
[1734463963269,2.9907,227.98,227.92,5.85938136]
[1734463964369,2.193,227.97,227.92,5.85938136]
[1734463964869,8.31938136,227.99,227.92,5.85938136]
[1734463965169,2.1928,227.98,227.92,5.85938136]
[1734463966069,2.1929,227.97,227.92,5.85938136]
[1734463967571,2.1929,227.97,227.9,2.1935]
[1734463967572,2.1929,227.97,227.9,8.05288136]
[1734463968270,2.1929,227.97,227.92,5.85938136]
[1734463968969,3.0472,228.05,227.96,5.85938136]
[1734463969167,5.85938136,228.03,227.96,5.85938136]
[1734463969570,11.03259558,228.03,227.96,5.85938136]
[1734463970270,11.03259558,228.03,227.94,2.46]
[1734463970469,2.1926,228.01,227.96,5.85938136]
[1734463974169,2.1926,228.0,227.94,8.05258136]
[1734463977376,2.1931,227.95,227.9,5.85938136]
[1734463977978,2.1933,227.93,227.88,5.85938136]
[1734463978977,2.1932,227.94,227.88,8.05308136]
[1734463980076,7.91308136,227.99,227.9,5.85938136]
[1734463980270,7.91308136,227.99,227.92,5.85938136]
[1734463980780,2.1929,227.97,227.92,5.85938136]
[1734463983878,8.05228136,227.97,227.9,8.05288136]
[1734463984079,2.1929,227.97,227.9,8.05288136]
[1734463985174,2.44,228.04,227.96,5.85938136]
[1734463985477,11.03259558,228.03,227.96,5.85938136]
[1734463985681,2.1925,228.01,227.96,5.85938136]
[1734463986284,2.1925,228.01,227.95,2.1931]
[1734463986479,2.1925,228.01,227.96,5.85938136]
[1734463986876,5.85938136,228.05,227.96,5.85938136]
[1734463987076,4.373,228.08,228.0,5.85938136]
[1734463987381,10.23238136,228.08,228.0,5.85938136]
[1734463987582,2.1921,228.06,228.0,5.85938136]
[1734463987781,5.85938136,228.06,227.97,2.44]
[1734463987981,5.85938136,228.06,227.97,8.29938136]
[1734463988185,2.1924,228.03,227.97,10.49228136]
[1734463988884,2.1922,228.04,227.99,5.85938136]
[1734463989385,15.43320242,228.08,228.01,5.85938136]
[1734463990580,2.192,228.06,228.01,5.85938136]
[1734463990780,15.43320242,228.08,227.97,2.44]
[1734463990781,2.2233,228.08,228.03,5.85938136]
[1734463990985,0.20633,228.09,228.07,5.85938136]
[1734463992386,4.2869,228.17,228.09,2.1917]
[1734463992581,4.2869,228.17,228.11,5.85938136]
[1734463993885,5.85938136,228.18,228.11,5.85938136]
[1734463994092,9.13641608,228.23,228.09,11.57641608]
[1734463994295,2.44,228.22,228.09,11.57641608]
[1734463994687,2.1907,228.2,228.12,2.1914]
[1734463996591,2.1906,228.22,228.14,2.1913]
[1734463999194,0.36083,228.29,228.19,9.13641608]
[1734463999386,0.36083,228.29,228.2,2.44]
[1734463999592,0.36083,228.29,228.22,11.32681608]
[1734463999791,0.36083,228.29,228.22,9.13641608]
[1734464000294,0.36083,228.29,228.22,11.32681608]
[1734464001089,0.36083,228.29,228.25,2.1902]
[1734464003089,0.36083,228.29,228.25,4.6302]
[1734464003289,0.36083,228.29,228.25,13.76661608]
[1734464003491,0.36083,228.29,228.25,11.57641608]
[1734464004497,0.36083,228.29,228.27,2.19]
[1734464005997,0.36083,228.29,228.25,13.76651608]
[1734464009096,0.36083,228.29,228.25,16.15911608]
[1734464012199,0.36083,228.29,228.25,13.71911608]
[1734464012498,0.36083,228.29,228.25,4.8326]
[1734464012697,0.36083,228.29,228.19,2.3349]
[1734464012904,0.36083,228.29,228.22,9.13641608]
[1734464013102,2.19,228.28,228.22,11.32681608]
[1734464013301,0.36083,228.29,228.22,9.13641608]
[1734464013603,0.36083,228.29,228.24,2.1902]
[1734464013996,0.36083,228.29,228.25,9.13641608]
[1734464015209,0.36083,228.29,228.25,11.32651608]
[1734464015399,0.36083,228.29,228.25,9.13641608]
[1734464015800,0.36083,228.29,228.26,2.44]
[1734464016005,0.36083,228.29,228.28,5.83891037]
[1734464018205,24.1063,228.57,228.28,5.83891037]
[1734464018411,9.1552,228.42,228.34,5.83891037]
[1734464018902,6.7152,228.42,228.34,5.83891037]
[1734464019111,2.1888,228.4,228.34,5.83891037]
[1734464019313,6.7152,228.42,228.34,5.83891037]
[1734464019707,5.26278801,228.41,228.34,5.83891037]
[1734464019911,6.7152,228.42,228.34,5.83891037]
[1734464020416,2.189,228.38,228.34,5.83891037]
[1734464020717,2.189,228.38,228.36,5.83891037]
[1734464024019,2.189,228.38,228.34,5.83891037]
[1734464027327,0.26209,228.41,228.31,2.44]
[1734464027328,2.1888,228.4,228.36,5.83891037]
[1734464027922,2.1888,228.4,228.38,5.83891037]
[1734464029628,0.26209,228.41,228.38,5.83891037]
[1734464030029,0.26209,228.41,228.4,5.83891037]
[1734464030628,0.26209,228.41,228.38,5.83891037]
[1734464032830,0.26209,228.41,228.36,2.44]
[1734464033034,2.1889,228.4,228.36,8.27891037]
[1734464034033,2.1889,228.4,228.38,5.83891037]
[1734464036334,2.1889,228.4,228.34,2.1893]
[1734464036335,5.83891037,228.42,228.34,5.83891037]
[1734464036531,2.1208,228.41,228.34,5.83891037]
[1734464037332,2.1892,228.36,228.34,5.83891037]
[1734464038439,2.1892,228.36,228.32,5.83891037]
[1734464038639,5.83891037,228.36,228.27,4.6855]
[1734464038835,5.83891037,228.36,228.27,2.3293]
[1734464039141,14.52580308,228.38,228.34,5.83891037]
[1734464039441,2.1208,228.41,228.36,5.83891037]
[1734464039442,7.60326993,228.37,228.36,5.83891037]
[1734464039639,7.60326993,228.4,228.36,5.83891037]
[1734464039838,4.5608,228.41,228.36,5.83891037]
[1734464040242,2.1889,228.39,228.36,5.83891037]
[1734464040435,16.65061691,228.41,228.27,2.44]
[1734464040436,14.52981691,228.4,228.27,2.44]
[1734464040635,5.83891037,228.36,228.28,5.83891037]
[1734464040842,5.83891037,228.36,228.25,5.35534829]
[1734464041137,2.44,228.39,228.21,2.4099]
[1734464041138,5.83891037,228.32,228.26,5.83891037]
[1734464041342,5.83891037,228.32,228.24,5.83891037]
[1734464041942,2.19,228.27,228.24,5.83891037]
[1734464043838,2.1899,228.28,228.24,5.83891037]
[1734464044044,2.1899,228.28,228.2,13.75884035]
[1734464044435,16.75835758,228.28,228.2,13.75884035]
[1734464044642,7.62234122,228.27,228.2,13.75884035]
[1734464044844,2.1899,228.28,228.21,2.1906]
[1734464045538,6.94451237,228.3,228.23,9.12814035]
[1734464045737,6.94494589,228.33,228.23,9.12814035]
[1734464045946,4.6932,228.34,228.23,9.12814035]
[1734464046343,2.1897,228.3,228.24,2.1903]
[1734464046644,4.6932,228.34,228.24,2.1903]
[1734464047144,4.6932,228.34,228.2,11.56814035]
[1734464047737,9.98548518,228.34,228.2,11.56814035]
[1734464048137,2.1899,228.29,228.22,2.1905]
[1734464048344,9.98548518,228.34,228.2,11.56814035]
[1734464048546,9.12814035,228.33,228.2,11.56814035]
[1734464048746,2.19,228.27,228.2,13.75874035]
[1734464049245,2.19,228.27,228.2,11.56814035]
[1734464049641,2.19,228.27,228.2,9.12814035]
[1734464050546,2.19,228.27,228.2,11.31884035]
[1734464052146,2.44,228.31,228.2,9.12814035]
[1734464052747,2.19,228.27,228.2,11.31874035]
[1734464053549,2.1899,228.28,228.22,2.1905]
[1734464053747,4.5682,228.32,228.23,9.12814035]
[1734464054242,2.1898,228.29,228.23,11.31854035]
[1734464054552,4.5682,228.32,228.23,11.31854035]
[1734464055447,2.1898,228.3,228.23,11.31854035]
[1734464056847,2.1898,228.3,228.19,2.2896]
[1734464056848,5.29357275,228.33,228.26,9.12814035]
[1734464057043,5.29357275,228.33,228.29,9.12814035]
[1734464057643,2.1891,228.37,228.3,2.1897]
[1734464057848,4.7279,228.41,228.29,9.12814035]
[1734464058049,4.7279,228.41,228.27,2.4157]
[1734464058253,5.23461587,228.38,228.25,2.2909]
[1734464058755,5.23461587,228.38,228.24,4.6302]
[1734464059049,4.6365,228.37,228.24,2.44]
[1734464059251,2.44,228.36,228.24,2.44]
[1734464059843,2.1897,228.31,228.24,4.6303]
[1734464060748,2.1894,228.34,228.26,2.1901]
[1734464061153,9.38810575,228.36,228.26,2.1901]
[1734464061352,2.44,228.36,228.24,2.44]
[1734464062253,9.38924644,228.36,228.24,2.44]
[1734464062453,2.1895,228.33,228.26,2.1901]
[1734464062853,2.44,228.36,228.24,2.44]
[1734464063050,2.1893,228.35,228.27,2.19]
[1734464063455,7.67461587,228.38,228.27,2.19]
[1734464063855,22.25694553,228.38,228.27,2.19]
[1734464064150,7.67461587,228.38,228.27,2.19]
[1734464064350,5.83899742,228.37,228.29,5.83899742]